[Event "SixDays Budapest GM-A January 2024"]
[Site "Budapest"]
[Date "2024.01.27"]
[Round "1.1"]
[White "Durak, Can"]
[Black "Can, Isik"]
[Result "0-1"]
[ECO "A62"]
[WhiteElo "2349"]
[BlackElo "2500"]
[Annotator "RC"]
[PlyCount "88"]
[EventDate "2024.01.26"]
[EventType "tourn"]
[EventCountry "HUN"]
[SourceTitle "playchess.com"]
[Source "ChessBase"]
[SourceQuality "1"]
[TimeControl "5400+30"]

1. d4 {[%emt 0:08:04]} Nf6 {[%emt 0:00:08]} 2. c4 {[%emt 0:00:10]} e6 {[%emt 0:00:04]} 3. g3 {[%emt 0:00:36]} c5 {[%emt 0:00:03]} 4. d5 {[%emt 0:00:11]} d6 {[%emt 0:00:06]} 5. Nc3 {[%emt 0:00:23]} exd5 {[%emt 0:00:04]} 6. cxd5 {[%emt 0:00:13]} g6 {[%emt 0:00:04]} 7. Bg2 {[%emt 0:00:12]} Bg7 {[%emt 0:00:04]} 8. Nf3 {[%emt 0:00:13]} O-O {[%emt 0:00:05]} 9. O-O {[%emt 0:00:10]} Re8 {[%emt 0:00:03]} 10. Re1 {[%emt 0:04:20]} Nbd7 {[%emt 0:03:48]} 11. Bf4 {[%emt 0:04:17]} Ng4 {[%emt 0:01:15]} 12. h3 {[%emt 0:08:21]} Nge5 {[%emt 0:01:01]} 13. Ne4 {[%emt 0:09:13]} Qe7 {[%emt 0:25:11]} 14. Qc1 {[%emt 0:03:09]} Qf8 {[%emt 0:16:29]} 15. Nxe5 {[%emt 0:09:10]} Nxe5 {[%emt 0:00:22]} 16. a4 {[%emt 0:00:45]} h6 {[%emt 0:12:37]} 17. h4 {[%emt 0:05:07]} b6 {[%emt 0:02:56]} 18. b4 {[%emt 0:12:07]} f5 {[%emt 0:03:59]} 19. Nc3 {[%emt 0:02:13]} cxb4 {[%emt 0:01:20]} 20. Nb5 {[%emt 0:04:40]} Bd7 {[%emt 0:00:14]} 21. Qb1 {[%emt 0:10:04]} Bxb5 {[%emt 0:04:52]} 22. axb5 {[%emt 0:00:06]} Ng4 {[%emt 0:00:55]} 23. Qxb4 {[%emt 0:00:38]} Bxa1 {[%emt 0:02:19]} 24. Rxa1 {[%emt 0:00:10]} Ne5 {[%emt 0:06:59]} 25. Rc1 {[%emt 0:00:26]} Rac8 {[%emt 0:00:50]} 26. Rc6 {[%emt 0:00:10]} Nxc6 {[%emt 0:01:20]} 27. dxc6 {[%emt 0:00:12]} Re5 {[%emt 0:05:20]} 28. h5 {[%emt 0:05:09]} gxh5 {[%emt 0:01:10]} 29. Bxe5 {[%emt 0:03:31]} dxe5 {[%emt 0:00:01]} 30. Qc4+ {[%emt 0:00:13]} Kg7 {[%emt 0:02:04]} 31. Qe6 {[%emt 0:01:32]} Re8 {[%emt 0:00:29]} 32. Qd7+ {[%emt 0:05:12]} Re7 {[%emt 0:00:42]} 33. Qd6 {[%emt 0:00:24]} Re8 {[%emt 0:00:11]} 34. Qd7+ {[%emt 0:01:30]} Qf7 {[%emt 0:01:37]} 35. Qd6 {[%emt 0:00:08]} Qe7 {[%emt 0:00:52]} 36. Qd5 {[%emt 0:01:17]} h4 {[%emt 0:03:29]} 37. Bh3 {[%emt 0:03:07]} hxg3 {[%emt 0:01:43]} 38. Bxf5 {[%emt 0:00:14]} gxf2+ {[%emt 0:02:07]} 39. Kf1 {[%emt 0:00:02]} Qg5 {[%emt 0:00:19]} 40. Qg2 {[%emt 0:01:04]} Qxg2+ {[%emt 0:00:35]} 41. Kxg2 {[%emt 0:00:01]} Kf6 {[%emt 0:00:45]} 42. Bh3 {[%emt 0:02:01]} Re7 {[%emt 0:00:14]} 43. Kxf2 {[%emt 0:00:17]} Rc7 {[%emt 0:00:16]} 44. Kf3 {[%emt 0:00:08]} Ke7 {[%emt 0:00:20]} 0-1

[Event "SixDays Budapest GM-A January 2024"]
[Site "Budapest"]
[Date "2024.01.27"]
[Round "1.2"]
[White "Barrish, Daniel"]
[Black "Pham Tran Gia Phuc"]
[Result "0-1"]
[ECO "B30"]
[WhiteElo "2347"]
[BlackElo "2416"]
[Annotator "RC"]
[PlyCount "66"]
[EventDate "2024.01.26"]
[EventType "tourn"]
[EventCountry "HUN"]
[SourceTitle "playchess.com"]
[Source "ChessBase"]
[SourceQuality "1"]
[TimeControl "5400+30"]

1. e4 {[%emt 0:15:26]} c5 {[%emt 0:00:16]} 2. Nf3 {[%emt 0:00:12]} Nc6 {[%emt 0:00:16]} 3. Bb5 {[%emt 0:00:16]} e5 {[%emt 0:00:21]} 4. O-O {[%emt 0:00:18]} Bd6 {[%emt 0:00:18]} 5. c3 {[%emt 0:00:17]} a6 {[%emt 0:00:13]} 6. Ba4 {[%emt 0:00:11]} b5 {[%emt 0:00:35]} 7. Bc2 {[%emt 0:00:06]} Nge7 {[%emt 0:00:16]} 8. a4 {[%emt 0:00:17]} Rb8 {[%emt 0:02:43]} 9. Re1 {[%emt 0:07:34]} O-O {[%emt 0:02:07]} 10. d3 {[%emt 0:04:54]} Bc7 {[%emt 0:01:38]} 11. Nbd2 {[%emt 0:04:30]} d6 {[%emt 0:01:17]} 12. Nf1 {[%emt 0:00:52]} h6 {[%emt 0:06:37]} 13. d4 {[%emt 0:08:45]} cxd4 {[%emt 0:02:37]} 14. cxd4 {[%emt 0:00:11]} Bg4 {[%emt 0:00:14]} 15. d5 {[%emt 0:16:29]} Nd4 {[%emt 0:00:24]} 16. axb5 {[%emt 0:06:31]} axb5 {[%emt 0:00:41]} 17. Be3 {[%emt 0:01:00]} Ba5 {[%emt 0:04:39]} 18. N1d2 {[%emt 0:20:48]} Nxc2 {[%emt 0:11:32]} 19. Qxc2 {[%emt 0:00:15]} Bxf3 {[%emt 0:00:07]} 20. gxf3 {[%emt 0:00:41]} f5 {[%emt 0:00:06]} 21. b4 {[%emt 0:07:19]} Bxb4 {[%emt 0:00:26]} 22. Reb1 {[%emt 0:00:22]} Bxd2 {[%emt 0:04:28]} 23. Bxd2 {[%emt 0:00:05]} Ng6 {[%emt 0:00:06]} 24. Rb3 {[%emt 0:02:29]} Nh4 {[%emt 0:00:28]} 25. Ra7 {[%emt 0:01:45]} Rc8 {[%emt 0:00:51]} 26. Qb1 {[%emt 0:01:09]} fxe4 {[%emt 0:00:13]} 27. Qxe4 {[%emt 0:00:05]} Rc4 {[%emt 0:00:07]} 28. Qe2 {[%emt 0:00:11]} Qf6 {[%emt 0:00:10]} 29. f4 {[%emt 0:00:50]} Ra4 {[%emt 0:03:15]} 30. Rxa4 {[%emt 0:01:03]} bxa4 {[%emt 0:00:10]} 31. Rg3 {[%emt 0:00:33]} exf4 {[%emt 0:00:17]} 32. Bc3 {[%emt 0:00:08]} Rb8 {[%emt 0:02:15]} 33. Qd3 {[%emt 0:00:50]} Qxc3 {[%emt 0:00:21]} 0-1

[Event "SixDays Budapest GM-A January 2024"]
[Site "Budapest"]
[Date "2024.01.27"]
[Round "1.4"]
[White "Karamsetty, Jeevan"]
[Black "Nagy, Gabor"]
[Result "0-1"]
[ECO "B40"]
[WhiteElo "2211"]
[BlackElo "2450"]
[Annotator "RC"]
[PlyCount "90"]
[EventDate "2024.01.26"]
[EventType "tourn"]
[EventCountry "HUN"]
[SourceTitle "playchess.com"]
[Source "ChessBase"]
[SourceQuality "1"]
[TimeControl "5400+30"]

1. e4 {[%emt 0:00:04]} c5 {[%emt 0:00:36]} 2. Nf3 {[%emt 0:00:10]} e6 {[%emt 0:01:15]} 3. d3 {[%emt 0:00:37]} Nc6 {[%emt 0:01:45]} 4. g3 {[%emt 0:00:20]} d5 {[%emt 0:00:34]} 5. Nbd2 {[%emt 0:00:28]} Bd6 {[%emt 0:00:54]} 6. Bg2 {[%emt 0:00:13]} Nge7 {[%emt 0:00:15]} 7. O-O {[%emt 0:00:25]} O-O {[%emt 0:00:20]} 8. Re1 {[%emt 0:00:29]} Qc7 {[%emt 0:02:12]} 9. c3 {[%emt 0:00:50]} d4 {[%emt 0:03:32]} 10. Nc4 {[%emt 0:11:54]} e5 {[%emt 0:01:13]} 11. cxd4 {[%emt 0:20:24]} cxd4 {[%emt 0:03:04]} 12. Bd2 {[%emt 0:03:42]} a5 {[%emt 0:04:02]} 13. Rc1 {[%emt 0:07:01]} f6 {[%emt 0:01:20]} 14. a4 {[%emt 0:08:09]} Be6 {[%emt 0:02:14]} 15. Nh4 {[%emt 0:01:36]} Rfc8 {[%emt 0:02:33]} 16. Rf1 {[%emt 0:15:00]} Qd8 {[%emt 0:10:38]} 17. f4 {[%emt 0:01:36]} Bc7 {[%emt 0:03:17]} 18. f5 {[%emt 0:01:57]} Bf7 {[%emt 0:00:08]} 19. g4 {[%emt 0:00:16]} Nb4 {[%emt 0:00:17]} 20. g5 {[%emt 0:07:52]} Ra6 {[%emt 0:10:16]} 21. Qf3 {[%emt 0:04:52]} Qe8 {[%emt 0:02:28]} 22. Qg3 {[%emt 0:02:15]} Kh8 {[%emt 0:02:17]} 23. Qh3 {[%emt 0:00:23]} fxg5 {[%emt 0:01:10]} 24. Bxg5 {[%emt 0:00:29]} Ng8 {[%emt 0:00:07]} 25. b3 {[%emt 0:06:36]} Rc6 {[%emt 0:00:39]} 26. Rf3 {[%emt 0:01:35]} Bd8 {[%emt 0:03:31]} 27. Bxd8 {[%emt 0:01:34]} Qxd8 {[%emt 0:00:09]} 28. Rcf1 {[%emt 0:03:07]} Rh6 {[%emt 0:04:49]} 29. Nxe5 {[%emt 0:00:19]} Rc7 {[%emt 0:00:01]} 30. f6 {[%emt 0:00:29]} gxf6 {[%emt 0:00:21]} 31. Ng4 {[%emt 0:00:39]} Be6 {[%emt 0:01:52]} 32. Qg3 {[%emt 0:00:15]} Rg7 {[%emt 0:02:07]} 33. Nxh6 {[%emt 0:00:17]} Rxg3 {[%emt 0:00:08]} 34. hxg3 {[%emt 0:00:04]} Bxb3 {[%emt 0:02:59]} 35. Nxg8 {[%emt 0:00:58]} Bxg8 {[%emt 0:01:46]} 36. Rxf6 {[%emt 0:00:46]} Nxd3 {[%emt 0:00:07]} 37. Bh3 {[%emt 0:00:43]} Nc5 {[%emt 0:02:18]} 38. e5 {[%emt 0:00:29]} d3 {[%emt 0:00:05]} 39. Nf3 {[%emt 0:00:31]} Ne4 {[%emt 0:00:21]} 40. Rf4 {[%emt 0:00:33]} Nxg3 {[%emt 0:00:16]} 41. Nd2 {[%emt 0:00:29]} Nxf1 {[%emt 0:00:26]} 42. Kxf1 {[%emt 0:00:19]} Qg5 {[%emt 0:00:16]} 43. Rf2 {[%emt 0:00:34]} Qxe5 {[%emt 0:00:07]} 44. Bd7 {[%emt 0:00:36]} Qa1+ {[%emt 0:00:14]} 45. Kg2 {[%emt 0:00:09]} Qg7+ {[%emt 0:00:05]} 0-1

[Event "SixDays Budapest GM-A January 2024"]
[Site "Budapest"]
[Date "2024.01.27"]
[Round "1.5"]
[White "Castellanos Rodriguez, Renier"]
[Black "Pribelszky, Bence"]
[Result "1-0"]
[ECO "B47"]
[WhiteElo "2468"]
[BlackElo "2371"]
[Annotator "TA"]
[PlyCount "119"]
[EventDate "2024.01.26"]
[EventType "tourn"]
[EventCountry "HUN"]
[SourceTitle "playchess.com"]
[Source "ChessBase"]
[SourceQuality "1"]
[TimeControl "5400+30"]

{[%evp 42,119,156,151,151,158,189,184,195,149,164,155,145,158,156,72,70,75,56,66,34,37,40,40,53,60,92,99,64,42,50,8,13,12,20,18,14,12,12,0,0,0,0,0,87,0,0,0,23,23,79,21,129,129,219,210,245,226,231,185,265,160,325,292,427,387,452,447,451,451,562,564,679,439,648,551,673,565,661,583]} 1. e4 {[%emt 0:00:04]} c5 {[%emt 0:00:30]} 2. Nf3 {[%emt 0:00:05]} e6 {[%emt 0:00:06]} 3. d4 {[%emt 0:00:17]} cxd4 {[%emt 0:00:13]} 4. Nxd4 {[%emt 0:00:06]} Nc6 {[%emt 0:00:08]} 5. Nc3 {[%emt 0:01:24]} Qc7 {[%emt 0:00:07]} 6. a3 {[%emt 0:01:36]} a6 {[%emt 0:00:08]} 7. Nxc6 {[%emt 0:01:04]} bxc6 {[%emt 0:01:40]} 8. Qg4 {[%emt 0:00:41]} Nf6 {[%emt 0:08:28]} 9. Qg3 {[%emt 0:00:39]} Qxg3 {[%emt 0:00:09]} 10. hxg3 {[%emt 0:00:04]} d5 {[%emt 0:00:15]} 11. Bd3 {[%emt 0:00:18]} Be7 {[%emt 0:18:51]} 12. Bf4 {[%emt 0:03:11]} h6 {[%emt 0:00:38]} 13. f3 {[%emt 0:04:45]} Nd7 {[%emt 0:07:13]} 14. g4 {[%emt 0:02:38]} Bb7 {[%emt 0:15:42]} 15. g5 {[%emt 0:08:11]} e5 {[%emt 0:03:59]} 16. Bd2 {[%emt 0:01:10]} h5 {[%emt 0:00:14]} 17. g6 {[%emt 0:05:43]} f6 {[%emt 0:00:24]} 18. Ne2 {[%emt 0:02:01]} dxe4 {[%emt 0:13:48]} 19. Bxe4 {[%emt 0:01:32]} Nc5 {[%emt 0:00:18]} 20. Bf5 {[%emt 0:01:06]} Bc8 {[%emt 0:07:36]} 21. Ng3 {[%emt 0:01:39]} Bxf5 {[%emt 0:06:02]} 22. Nxf5 {[%emt 0:00:13]} Ne6 {[%emt 0:00:11]} 23. Be3 {[%emt 0:03:44]} Rd8 {[%emt 0:02:55]} 24. Rh4 {[%emt 0:02:58]} Rg8 {[%emt 0:03:11]} 25. Rxh5 {[%emt 0:02:27]} ({Better is} 25. Ra4 $18 Ra8 26. O-O-O) 25... Nf8 $16 {[%emt 0:00:12]} 26. Rh4 {[%emt 0:04:00]} Nxg6 {[%emt 0:00:25]} 27. Ra4 {[%emt 0:00:59]} Ra8 {[%emt 0:01:13]} 28. Rd1 {[%emt 0:04:29]} (28. Rg4 $142 Nf8 29. Nxg7+ (29. Rxg7 Rxg7 30. Nxg7+ Kf7 $16) 29... Kf7 30. Nf5 Rxg4 31. fxg4) 28... Kf7 $16 {[%emt 0:02:27]} 29. Rg4 {[%emt 0:02:37]} Ke6 {[%emt 0:02:30]} 30. Nxe7 {[%emt 0:02:26]} Nxe7 {[%emt 0:00:05]} 31. Bc5 {[%emt 0:00:22]} Nf5 {[%emt 0:00:58]} 32. Ra4 {[%emt 0:00:43]} Rh8 {[%emt 0:01:34]} 33. Kf2 {[%emt 0:01:41]} Rhd8 {[%emt 0:02:11]} 34. Rxd8 {[%emt 0:01:16]} Rxd8 {[%emt 0:00:02]} 35. Ke2 {[%emt 0:01:09]} (35. Rxa6 $6 Rd2+ 36. Kf1 Ng3+ (36... Rxc2 37. b4 $11) 37. Kg1 (37. Ke1 Rxc2 38. b4 Re2+ 39. Kd1 Kd5 $11) 37... Ne2+ 38. Kf1 Rxc2 $11) 35... Ra8 {[%emt 0:00:34]} 36. Rb4 {[%emt 0:03:06]} Kd5 {[%emt 0:01:25]} 37. Bf2 {[%emt 0:00:20]} Nd6 {[%emt 0:02:05]} 38. b3 {[%emt 0:00:44]} c5 {[%emt 0:00:31]} 39. Rb6 {[%emt 0:01:59]} c4 {[%emt 0:00:04]} 40. b4 {[%emt 0:02:27]} Nb5 {[%emt 0:00:55]} 41. Bc5 {[%emt 0:00:21]} e4 $1 {[%emt 0:00:23]} 42. f4 {[%emt 0:03:16]} Nd4+ {[%emt 0:00:35]} (42... c3 $1 $11 43. a4 Nd4+ 44. Bxd4 Kxd4) 43. Ke3 {[%emt 0:00:33]} ({White should play} 43. Kd1 $1 $16 {[%csl Gc5][%cal Rb6d6]} Rd8 44. Rxa6) 43... Nf5+ $1 $11 {[%emt 0:00:25]} (43... Nxc2+ $2 {is the wrong capture.} 44. Kd2 Nxb4 45. axb4 (45. Bxb4 c3+ 46. Bxc3 Rh8 $18) 45... e3+ 46. Kxe3 (46. Bxe3 Ke4 $18) 46... Re8+ 47. Kd2 $18) 44. Kf2 {[%emt 0:01:47]} Re8 {[%emt 0:00:32]} 45. Be3 {[%emt 0:01:04]} Re6 {[%emt 0:00:36]} (45... Nd4 $11 46. c3 (46. Rxa6 Nxc2 47. Ra5+ Kd6 $14) (46. Bxd4 Kxd4 47. Rxa6 Kc3 $11) 46... Nb5) 46. Rb7 {[%emt 0:02:38]} (46. Rb8 $16) 46... Re7 {[%emt 0:00:24] [#]} (46... g6 $11) 47. Rb8 $1 $16 {[%emt 0:00:41]} Rd7 {[%emt 0:00:37] [#]} (47... Re6 $16 {might work better.} 48. c3 Nh6) 48. Rc8 $1 $18 {[%emt 0:01:52]} Nd6 {[%emt 0:00:29]} 49. Rc5+ {[%emt 0:00:28]} Ke6 {[%emt 0:00:05]} 50. g4 {[%emt 0:00:49]} g6 {[%emt 0:00:48]} (50... Nb5 $142) 51. Ra5 {[%emt 0:01:01]} Nb5 $2 {[%emt 0:00:38]} (51... f5 $16) 52. Rxa6+ $18 {[%emt 0:00:16]} Kf7 {[%emt 0:00:01]} (52... Kd5 $142 53. Ra5 (53. Rxf6 Nxa3 54. Rxg6 Nxc2 $18) 53... Kc6) 53. a4 $18 {[%emt 0:01:39]} Na3 {[%emt 0:00:58]} 54. Rc6 {[%emt 0:01:12]} Rd1 {[%emt 0:00:31]} 55. a5 {[%emt 0:01:01]} Ra1 {[%emt 0:00:25]} 56. Rxf6+ {[%emt 0:02:44]} ({Weaker is} 56. Bd4 Ra2 $18) 56... Kg7 {[%emt 0:00:32]} 57. Rc6 {[%emt 0:02:08]} Ra2 {[%emt 0:00:25]} (57... Nxc2 $142 58. Rxc4 Ra2 59. Rxe4 Nxb4+ 60. Kg3 Nc6) 58. Bd4+ $18 {[%emt 0:00:42]} Kf7 {[%emt 0:00:22]} 59. Ke3 {[%emt 0:01:21]} Nxc2+ {[%emt 0:00:39]} 60. Kxe4 {[%emt 0:00:06]} 1-0

[Event "SixDays Budapest GM-A January 2024"]
[Site "Budapest"]
[Date "2024.01.28"]
[Round "2.1"]
[White "Can, Isik"]
[Black "Pribelszky, Bence"]
[Result "1-0"]
[ECO "B06"]
[WhiteElo "2500"]
[BlackElo "2371"]
[Annotator "TA"]
[PlyCount "85"]
[EventDate "2024.01.26"]
[EventType "tourn"]
[EventCountry "HUN"]
[SourceTitle "playchess.com"]
[Source "ChessBase"]
[SourceQuality "1"]
[TimeControl "5400+30"]

{[%evp 13,85,58,54,64,49,64,51,45,28,31,61,53,72,59,134,94,182,176,143,116,125,85,195,171,248,162,147,54,90,70,74,82,70,72,64,68,91,73,79,72,94,-16,27,0,51,19,20,0,0,-90,124,171,166,172,128,102,335,183,509,306,275,314,289,275,509,500,523,402,1099,975,945,912,1800,1668]} 1. e4 {[%emt 0:10:33]} g6 {[%emt 0:00:06]} 2. d4 {[%emt 0:00:03]} Bg7 {[%emt 0:00:05]} 3. Nc3 {[%emt 0:00:05]} a6 {[%emt 0:00:06]} 4. Be3 {[%emt 0:00:05]} b5 {[%emt 0:00:06]} 5. h4 {[%emt 0:00:03]} h6 {[%emt 0:06:48]} 6. h5 {[%emt 0:01:51]} g5 {[%emt 0:00:06]} 7. f4 {[%emt 0:00:18]} gxf4 {[%emt 0:00:11]} 8. Qg4 {[%emt 0:00:19]} Nf6 $1 {[%emt 0:04:10]} 9. Qxf4 {[%emt 0:00:17]} (9. Qxg7 Rh7 $15) 9... d6 {[%emt 0:18:36]} 10. Be2 {[%emt 0:17:40]} b4 $1 {[%emt 0:25:10]} 11. Nd1 {[%emt 0:00:21]} Nc6 {[%emt 0:01:43]} 12. Nf3 {[%emt 0:04:56]} Qd7 {[%emt 0:08:19]} 13. Nf2 {[%emt 0:19:13]} Bb7 {[%emt 0:00:06]} ({Black should play} 13... Ng4 $14) 14. O-O-O {[%emt 0:03:26]} O-O-O {[%emt 0:00:23]} (14... e6 $16) 15. d5 $18 {[%emt 0:05:38]} Nb8 {[%emt 0:06:56]} 16. Bc4 {[%emt 0:06:13]} e6 {[%emt 0:06:44]} 17. Qh4 {[%emt 0:01:36]} Rhg8 {[%emt 0:01:06]} (17... exd5 $16 18. exd5 Rde8) 18. Kb1 $18 {[%emt 0:07:08]} Nh7 {[%emt 0:09:06]} (18... exd5 $142 19. exd5 b3) 19. g4 {[%emt 0:06:22]} Rde8 {[%emt 0:01:20]} 20. Bd4 {[%emt 0:03:43]} (20. Rhe1 $16) 20... Bxd4 {[%emt 0:01:17]} 21. Nxd4 {[%emt 0:00:05]} (21. Rxd4 $6 Qe7 $11) 21... Ng5 {[%emt 0:00:19]} 22. Rhe1 {[%emt 0:05:30]} c5 {[%emt 0:01:18]} 23. dxc6 $1 {[%emt 0:00:50]} Nxc6 {[%emt 0:00:02]} 24. Qg3 {[%emt 0:00:28]} Ne5 {[%emt 0:00:08]} 25. Qb3 {[%emt 0:01:31]} Qc7 {[%emt 0:01:03]} 26. Bf1 $1 {[%emt 0:00:46]} Qa5 {[%emt 0:00:13]} 27. Bg2 {[%emt 0:01:21]} ({White should try} 27. Re3 $1 $16) 27... Nh7 {[%emt 0:03:19]} 28. Bf3 {[%emt 0:02:44]} Nf6 {[%emt 0:00:38]} (28... Kb8 $1 $11) 29. Rg1 {[%emt 0:00:47]} Rg5 {[%emt 0:01:59]} 30. Nh3 {[%emt 0:00:34]} Rg7 {[%emt 0:00:57]} 31. g5 {[%emt 0:00:44]} (31. Nf2 $11) 31... Nxe4 $2 {[%emt 0:02:35]} (31... Nxf3 $1 $17 32. Nxf3 (32. Qxf3 Nxe4 33. Nb3 Qe5 $17) 32... Nxe4 33. Qc4+ Kd7 (33... Kb8 34. Qd4 $17)) 32. Bxe4 $16 {[%emt 0:00:38]} (32. gxh6 $2 Rxg1 33. Nxg1 Bd5 34. Bxe4 Bxb3 $19) 32... Bxe4 {[%emt 0:00:02] [#]} 33. Qe3 $1 {[%emt 0:00:14]} (33. gxh6 $2 Rxg1 34. Rxg1 Bd5 $19) 33... Bd5 {[%emt 0:00:34] [#]} 34. Nb3 $1 {[%emt 0:00:00]} Bxb3 $2 {[%emt 0:01:20]} (34... Qc7 $16) 35. axb3 {[%emt 0:00:50]} (35. cxb3 $142 {Strongly threatening Qa7.} Kb8 36. Rxd6 (36. gxh6 Rxg1 37. Qxg1 Nd7 $18)) 35... hxg5 $2 {[%emt 0:00:15]} (35... Qc5 {is tougher.} 36. Qe4 (36. Qxc5+ dxc5 37. Ka2 Nf3 $15) 36... Reg8 37. gxh6 (37. Qa8+ Kc7 $17) 37... Rxg1 38. Nxg1 Kc7 (38... Rxg1 $2 39. Qa8+ Kc7 40. Rxg1 $18)) 36. Nxg5 {[%emt 0:00:46]} Qc5 {[%emt 0:00:47]} 37. Qf4 {[%emt 0:00:37]} f5 {[%emt 0:00:36]} 38. h6 {[%emt 0:00:28]} Rd7 $2 {[%emt 0:00:21]} (38... Rg6 {keeps fighting.} 39. h7 Rh8) 39. h7 $18 {[%emt 0:00:29]} Ng6 {[%emt 0:00:38]} 40. Qf3 {[%emt 0:00:01]} Kc7 {[%emt 0:00:31]} (40... Rde7 $142 41. Nh3 (41. Qa8+ Kd7 $18) 41... Kb8 42. Rxg6 Rxh7) 41. Nxe6+ {[%emt 0:00:48]} Rxe6 {[%emt 0:00:04]} 42. Rxg6 $1 {[%emt 0:00:04]} Re8 {[%emt 0:00:53]} 43. Rg8 {[%emt 0:00:07]} 1-0

[Event "SixDays Budapest GM-A January 2024"]
[Site "Budapest"]
[Date "2024.01.28"]
[Round "2.2"]
[White "Nagy, Gabor"]
[Black "Castellanos Rodriguez, Renier"]
[Result "1/2-1/2"]
[ECO "A65"]
[WhiteElo "2450"]
[BlackElo "2468"]
[Annotator "TA"]
[PlyCount "66"]
[EventDate "2024.01.26"]
[EventType "tourn"]
[EventCountry "HUN"]
[SourceTitle "playchess.com"]
[Source "ChessBase"]
[SourceQuality "1"]
[TimeControl "5400+30"]

{[%evp 13,66,39,45,26,47,50,54,48,60,64,75,77,88,76,87,93,72,60,132,12,135,142,135,140,147,134,136,108,109,110,111,98,100,49,57,62,55,67,75,78,97,0,0,0,8,8,33,0,0,0,0,0,0,0,0]} 1. d4 {[%emt 0:00:05]} Nf6 {[%emt 0:00:11]} 2. c4 {[%emt 0:00:27]} e6 {[%emt 0:00:50]} 3. Nc3 {[%emt 0:02:10]} c5 {[%emt 0:01:35]} 4. d5 {[%emt 0:01:52]} exd5 {[%emt 0:00:05]} 5. cxd5 {[%emt 0:00:12]} d6 {[%emt 0:00:03]} 6. e4 {[%emt 0:00:57]} g6 {[%emt 0:00:07]} 7. Bd3 {[%emt 0:00:33]} Bg7 {[%emt 0:00:08]} 8. h3 {[%emt 0:00:14]} a6 {[%emt 0:02:29]} 9. a4 {[%emt 0:00:35]} Nbd7 {[%emt 0:00:48]} 10. Nf3 {[%emt 0:00:14] Weiß steht etwas besser.} Nh5 {[%emt 0:01:08]} 11. Be2 {[%emt 0:02:14]} O-O {[%emt 0:02:30][%cal Bh8f8,Bf8e8,Be8e5][%mdl 32]} 12. Bg5 {[%emt 0:02:19]} Nhf6 {[%emt 0:06:03]} 13. O-O {[%emt 0:02:03] Weiß hat aktiveres Spiel.} Re8 {[%emt 0:01:29]} 14. Nd2 {[%emt 0:02:10]} h6 {[%emt 0:04:59]} 15. Be3 {[%emt 0:00:19]} g5 {[%emt 0:05:19]} (15... Nh7 $14) 16. Nc4 {[%emt 0:04:51]} (16. f4 $16) 16... Ne5 {[%emt 0:10:26]} (16... Nb6 $11) 17. Nxe5 $16 {[%emt 0:01:52]} Rxe5 {[%emt 0:00:05]} 18. f4 {[%emt 0:00:44]} gxf4 {[%emt 0:01:37]} 19. Bxf4 {[%emt 0:00:14]} Qe7 {[%emt 0:06:11]} 20. Ra3 {[%emt 0:06:31][%cal Ba1a3,Ba3b3,Bb3e3][%mdl 32]} Rg5 {[%emt 0:06:44]} 21. Bxg5 {[%emt 0:02:57]} hxg5 {[%emt 0:00:12]} 22. Qd2 {[%emt 0:00:59]} Qe5 {[%emt 0:02:31][%cal Oc8h3]} 23. Kh1 {[%emt 0:03:24]} (23. Qe3 $16) 23... Bd7 {[%emt 0:03:08][%cal Og5g4]} 24. Rb3 {[%emt 0:01:53]} b5 {[%emt 0:01:07]} 25. axb5 {[%emt 0:00:46]} axb5 {[%emt 0:00:08]} 26. Bxb5 {[%emt 0:00:32]} Bxb5 {[%emt 0:06:46]} 27. Nxb5 {[%emt 0:00:43]} (27. Rxb5 $16 {Qf2 ist eine echte Drohung.} Nh5 28. Ne2) 27... Nxe4 $11 {[%emt 0:05:16]} 28. Qe1 {[%emt 0:02:19] [#] Und jetzt Re3 wäre schön.} Re8 {[%emt 0:05:58]} 29. Re3 {[%emt 0:03:02][%cal Ob5d6] Droht Nxd6! und aus.} f5 {[%emt 0:05:41][%cal Of5f4]} (29... Ng3+ $5 30. Qxg3 (30. Rxg3 $2 {verliert.} Qxe1 31. Rgf3 Qe7 $19) 30... Qxe3 31. Qxe3 (31. Qxd6 $2 {geht unter.} Qd3 $19) 31... Rxe3 $11) 30. Nc3 {[%emt 0:04:00] Nxe4 wäre nun fies.} Ng3+ {[%emt 0:00:55] Die Stellung ist ausgeglichen.} 31. Qxg3 {[%emt 0:00:11]} Qxe3 {[%emt 0:00:05]} 32. Qxe3 {[%emt 0:03:54]} Rxe3 {[%emt 0:00:11]} 33. Rxf5 {[%emt 0:00:07]} g4 {[%emt 0:01:33] Gewichteter Fehlerwert: Weiß=0.20 (präzise) /Schwarz=0.16 (sehr präzise) .  Fehler:       	Weiß=3     	Schwarz=2     Ungenau:       	Weiß=1     	---        OK:         	Weiß=11    	Schwarz=11    Bester:       	Weiß=3     	---} 1/2-1/2